Cogmind - Beta 17 @@@ ROGUE MODE // 2026.07.27 @ 06:40:21 Player: JP Result: Destroyed by G-47 Trooper with Particle Gun Performance ------------- Evolutions (3) 1500 Regions Visited (5) 1000 Robots Destroyed (32) 160 Value Destroyed (927) 927 Prototype IDs (2) 40 Alien Tech Used (0) 0 Bonus (7550) 7550 TOTAL SCORE: 11177 Bonus ------- Prayed to X0-1V1 5000 Major X0-1V1 Interference 2550 Cogmind --------- Core Integrity 0/550 Matter 859/900 Energy 99/100 System Corruption 7% Temperature Cool (15) Movement Core (100) Ox1 Location -7/Factory Parts ------- > --- POWER (2) -------- (None) > --- PROPULSION (4) --- (None) > --- UTILITY (4) ------ Small Storage Unit X0-1V1's Piety Tracker > --- WEAPON (3) ------- (None) > --- INVENTORY (9) ---- Medium Matter Pod (0) Medium Matter Pod (0) Weapon Cycler Microactuators Transmission Jammer Improved Light Armor Plating Medium Reactive Plating Medium Reactive Plating Medium Reactive Plating Peak State ------------ > --- POWER ------------ Reinforced Deuterium Engine Reinforced Deuterium Engine > --- PROPULSION ------- Wheel Subdweller Monowheel Armored Huge Wheel > --- UTILITY ---------- Huge Storage Unit Transmission Jammer Improved Light Armor Plating X0-1V1's Piety Tracker > --- WEAPON ----------- Autogun Improved Assault Rifle Improved Assault Rifle > --- INVENTORY -------- Reinforced Deuterium Engine Medium Matter Pod Weapon Cycler Microactuators Transmission Jammer Improved Light Armor Plating Medium Reactive Plating Medium Reactive Plating Medium Reactive Plating Medium Reactive Plating Shock Rifle Gauss Rifle Mace [Rating: 52] Favorites ----------- Power Reinforced Deuterium Engine Engine Reinforced Deuterium Engine Power Core Light Nuclear Core Propulsion Aluminum Leg Leg Aluminum Leg Wheel Subdweller Monowheel Utility X0-1V1's Piety Tracker Device X0-1V1's Piety Tracker Storage Huge Storage Unit Protection Improved Light Armor Plating Weapon Improved Assault Rifle Energy Gun Pulse Rifle Energy Cannon Subdweller Beam Cannon Ballistic Gun Improved Assault Rifle Impact Weapon Mace Build | -11 -10 -10 -8 -8 -7 ------- Run | Yrd Mat Sub Mat Sto Fac Slots Evolved 6 | . . . 4 . 2 Power 1 | . . . . . 1 Propulsion 2 | . . . 1 . 1 Utility 2 | . . . 2 . . Weapon 1 | . . . 1 . . Parts Attached 60 | 5 3 5 12 7 28 Power 8 | 1 . 1 2 1 3 Engine 6 | 1 . 1 1 . 3 Core 2 | . . . 1 1 . Reactor . | . . . . . . Propulsion 16 | 2 . 1 3 2 8 Treads . | . . . . . . Leg 6 | 2 . . 3 1 . Wheel 10 | . . 1 . 1 8 Hover . | . . . . . . Flight . | . . . . . . Utility 19 | . 3 1 3 1 11 Device 8 | . 1 . 2 1 4 Storage 5 | . 2 1 . . 2 Processor . | . . . . . . Hackware . | . . . . . . Protection 6 | . . . 1 . 5 Artifact . | . . . . . . Weapon 17 | 2 . 2 4 3 6 Energy Gun 5 | . . 1 3 . 1 Energy Cannon 1 | . . 1 . . . Ballistic Gun 10 | 2 . . 1 3 4 Ballistic Cannon . | . . . . . . Launcher . | . . . . . . Special Weapon . | . . . . . . Impact Weapon 1 | . . . . . 1 Slashing Weapon . | . . . . . . Piercing Weapon . | . . . . . . Special Melee Weapon . | . . . . . . Unidentified Prototypes 2 | . 1 . . 1 . Parts Lost 42 | . . 7 1 12 22 Power 6 | . . 2 . 1 3 Propulsion 16 | . . 2 . 4 10 Utility 8 | . . . 1 3 4 Weapon 12 | . . 3 . 4 5 Highest Loss Streak 15 | . . 7 1 11 15 To Critical Strikes . | . . . . . . Average Backups 7 | 3 4 3 5 6 8 Power . | . 1 . 1 1 . Propulsion 1 | 1 1 1 2 2 . Utility 3 | . 1 . . . 6 Weapon 1 | 1 1 . . 2 1 Tool/Special . | . . . . . . Unused Backups 16 | 1 1 . 1 2 11 Power 2 | . . . 1 . 1 Propulsion 6 | 1 1 . . 2 2 Utility 7 | . . . . . 7 Weapon 1 | . . . . . 1 Tool/Special . | . . . . . . Average Slot Usage (%) 71 | . 80 77 64 68 70 Engine 9 | . 14 9 4 . 10 Core 1 | . . . . 7 1 Leg 6 | . 28 17 5 14 . Wheel 8 | . . 1 7 7 12 Device 11 | . 1 14 10 15 10 Storage 6 | . 8 13 9 5 4 Protection 5 | . . . 3 . 9 Energy Gun 3 | . . . 9 11 1 Energy Cannon 1 | . . 2 8 . . Ballistic Gun 16 | . 28 17 4 7 18 Peak Build Rating 52 | 5 19 19 37 37 52 Average Rating 30 | 3 6 17 26 20 40 On Entrance 14 | . 5 19 18 37 8 Avg Prop Armor Cover (%) 2 | . . . 4 . 2 Naked Turns . | . . . . . . Heaviest Build 144 | 8 10 14 45 23 144 Greatest Support 64 | 20 20 20 37 37 64 Greatest Overweight (x) 47 | . . 4 4 3 47 Average Overweight (x) 1 | . . . 1 . 1 Largest Inventory Capacity 26 | 5 5 9 9 9 26 Average Capacity 12 | 5 5 6 9 7 17 Most Carried 16 | 5 5 8 9 9 16 Average Carried 7 | 4 4 3 5 6 8 Final Capacity 9 | 5 5 9 9 6 9 Final Carried 9 | 5 4 8 9 4 9 Class Distribution -------------------- 40% | Mutant 19% | Scavenger-Tank 15% | Hauler-Tank 7% | Gunner 6% | Scavenger-Skirmisher 6% | Hauler-Mutant Dominant Class ---------------- Mutant | -10/Materials Mutant | -10/Subcaves Mutant | -8/Materials Mutant | -8/Storage Scavenger-Tank | -7/Factory Resources | -11 -10 -10 -8 -8 -7 ----------- Run | Yrd Mat Sub Mat Sto Fac Matter Collected 1846 | 211 46 19 196 32 1342 Remotely . | . . . . . . Salvage Created 1499 | . 46 58 338 13 1044 Parts 74 | . 2 2 19 . 51 Haulers Intercepted 1 | . 1 . . . . Recyclers Shooed 5 | . . . 1 . 4 Parts Field Recycled . | . . . . . . Retrieved Matter . | . . . . . . Parts Self-Destructed 13 | . . 13 . . . Prevented . | . . . . . . Parts Restored . | . . . . . . Kills | -11 -10 -10 -8 -8 -7 ------- Run | Yrd Mat Sub Mat Sto Fac Combat Hostiles Destroyed 23 | . . 1 9 1 12 Guns 20 | . . . 7 1 12 Cannons 3 | . . 1 2 . . Classes Destroyed 12 | . 1 1 3 1 6 Worker 3 | . . . . . 3 Builder 1 | . . . . . 1 Hauler 1 | . 1 . . . . Recycler 5 | . . . . . 5 Swarmer 6 | . . . 3 . 3 Grunt 7 | . . . 5 . 2 Brawler 4 | . . . 1 . 3 Duelist 1 | . . . . . 1 Sentry 1 | . . . . . 1 Programmer 2 | . . . . . 2 Subdweller 1 | . . 1 . . . Assembled 1 | . . . . 1 . Best Kill Streak 9 | . 1 1 9 1 3 Combat Bots Only 9 | . . 1 9 1 3 Max Kills in Single Turn 2 | . 1 1 1 1 2 Gunslinging . | . . . . . . Exploded . | . . . . . . Melee . | . . . . . . Uniques/NPCs Destroyed . | . . . . . . Combat | -11 -10 -10 -8 -8 -7 -------- Run | Yrd Mat Sub Mat Sto Fac Hostile Shots Fired 687 | . . 100 48 129 410 Missed 218 | . . 45 15 33 125 Hits 469 | . . 55 33 96 285 Melee 14 | . . . 1 7 6 Projectile 455 | . . 55 32 89 279 AOE 14 | . . . . 14 . Critical Strikes 13 | . . 1 1 2 9 Damage Taken 5895 | . . 816 466 1463 3150 Core 1483 | . . 166 68 406 843 Absorbed by Shields . | . . . . . . Redirected to Shielding 17 | . . . . . 17 Ignored by Resistances 317 | . . . . 136 181 Core Remaining (%) 55 | 100 . 34 . 32 . Volleys Fired 97 | . 6 14 17 3 57 Largest 3 | . 2 2 3 3 3 Hottest 193 | . 40 80 166 193 101 Shots Fired 252 | . 12 27 41 10 162 Gun 237 | . 12 25 28 10 162 Cannon 15 | . . 2 13 . . Launcher . | . . . . . . Special . | . . . . . . Kinetic 195 | . 12 21 11 1 150 Thermal 41 | . . 2 30 9 . Explosive . | . . . . . . Electromagnetic 16 | . . 4 . . 12 Robot Hit Streak 11 | . 2 9 9 6 11 Robot Miss Streak 4 | . 2 4 3 2 3 Penetration Max 1 | . . . . . 1 Secondary Targets 4 | . . . 1 . 3 Max Gunslinging Chain 1 | . . . 1 . 1 Shots Hit Robots 162 | . 6 18 25 7 106 Core Hits 65 | . 2 3 13 5 42 Critical Kills . | . . . . . . Critical Parts Destroyed . | . . . . . . Critical Strikes 3 | . . . 2 . 1 Burn 2 | . . . 2 . . Destroy 1 | . . . . . 1 Melee Attacks 5 | . . . . . 5 Impact 5 | . . . . . 5 Slashing . | . . . . . . Piercing . | . . . . . . Sneak Attacks . | . . . . . . Combat Hostiles . | . . . . . . Follow-up Attacks . | . . . . . . Damage Inflicted 2919 | . 69 184 528 149 1989 Guns 2448 | . 69 132 306 149 1792 Cannons 274 | . . 52 222 . . Explosions 61 | . . . . . 61 Melee 41 | . . . . . 41 Ramming 95 | . . . . . 95 Kinetic 1961 | . 69 98 66 14 1714 Thermal 710 | . . 52 462 135 61 Explosive . | . . . . . . Electromagnetic 112 | . . 34 . . 78 Impact 41 | . . . . . 41 Slashing . | . . . . . . Piercing . | . . . . . . Highest Corruption 9 | . . . . 9 7 Average Corruption 5 | . . . . 6 5 Corruption Purged . | . . . . . . Corruption Blocked . | . . . . . . Effects 19 | . . . . 6 13 Message Errors 8 | . . . . 2 6 Matter Fused 6 | . . . . 2 4 Heat Flow Errors 3 | . . . . 1 2 Parts Rejected 1 | . . . . 1 . Data Loss (major) 1 | . . . . . 1 Overload Shots . | . . . . . . Overflow Damage 33 | . . . . . 33 Projectiles . | . . . . . . Explosions . | . . . . . . Melee 33 | . . . . . 33 Knockbacks . | . . . . . . Impact . | . . . . . . Kinetic . | . . . . . . Secondary . | . . . . . . Self-Inflicted Damage 57 | . . . . . 57 Shots 1 | . . . . . 1 Rammed 3 | . . . . . 3 Targets Rammed 4 | 1 . . . . 3 Kicked 1 | 1 . . . . . Crushed . | . . . . . . Highest Temperature 477 | . . . 412 286 477 Average Temperature 140 | . . . 181 100 133 Received Heat Transfer 1384 | . . 147 207 388 642 Effects 21 | . . . 2 1 18 Shutdowns 8 | . . . 1 . 7 Energy Bleed 3 | . . . . . 3 Interference 3 | . . . . 1 2 Matter Decay 1 | . . . . . 1 Short Circuit 2 | . . . . . 2 Damage (minor) 4 | . . . 1 . 3 Siege Activations . | . . . . . . Martial Activations . | . . . . . . Shielding Activations . | . . . . . . Robots Disrupted . | . . . . . . Combat Hostiles . | . . . . . . Robots Corrupted 1 | . . . . . 1 Combat Hostiles . | . . . . . . Parts Fried 3 | . . . . . 3 Impact Corruptions 2 | . . . . . 2 Robots Melted . | . . . . . . Combat Hostiles . | . . . . . . Parts Melted 2 | . . . 2 . . Heat Transferred 1432 | . . 74 962 296 100 Parts Sabotaged . | . . . . . . Parts Stolen . | . . . . . . Parts Stripped . | . . . . . . Power Chain Reactions 2 | . . . . . 2 Alert | -11 -10 -10 -8 -8 -7 ------- Run | Yrd Mat Sub Mat Sto Fac Maximum Alert Level 1 | . . . . 1 . Low Security (%) 91 | 100 100 . 100 14 100 Level 1 8 | . . . . 85 . Level 2 . | . . . . . . Level 3 . | . . . . . . Level 4 . | . . . . . . Level 5 . | . . . . . . High Security . | . . . . . . Max Security . | . . . . . . Peak Influence 350 | . 7 . 195 350 118 Initial 107 | . . . . 69 107 Average 63 | . . . 109 231 41 Influence Increases 1088 | . 7 . 246 368 467 Destroy 0b10 Robot/C 420 | . . . 180 . 240 Destroy 0b10 Robot/NC 50 | . 5 . . . 45 Destroy Leader 82 | . 2 . 30 . 50 Successful Hack 14 | . . . . 9 5 Destroy Structure 13 | . . . 6 . 7 Lose Combat Pursuer 225 | . . . 30 75 120 Miscellaneous 284 | . . . . 284 . Influence Decreases 1064 | . 7 . 81 296 680 Entered New Map 226 | . . . . 96 130 Time Decay 565 | . 7 . 71 80 407 Lost Part 273 | . . . 10 120 143 Squads Dispatched 6 | . . . . 2 4 Investigation 1 | . . . . 1 . Extermination 2 | . . . . . 2 Reinforcement . | . . . . . . Assault . | . . . . . . Garrison 3 | . . . . 1 2 Intercept . | . . . . . . Searches Triggered . | . . . . . . Construction Impeded . | . . . . . . Haulers Reinforced . | . . . . . . Active Scanning Responses . | . . . . . . Cargo Convoy Interrupts . | . . . . . . Stealth | -11 -10 -10 -8 -8 -7 --------- Run | Yrd Mat Sub Mat Sto Fac Distress Signals 3 | . . . . 1 2 Communications Jammed 2 | . . . . . 2 Distress Signals 2 | . . . . . 2 Times Spotted 82 | . . 8 13 24 37 Peak Tracking Total 13 | . . 5 4 13 10 Tactical Retreats 7 | . . 1 1 2 3 Traps | -11 -10 -10 -8 -8 -7 ------- Run | Yrd Mat Sub Mat Sto Fac Traps Triggered 6 | . . . . 3 3 Indirectly . | . . . . . . Trap Hack Attempts . | . . . . . . Triggered . | . . . . . . Disarmed . | . . . . . . Reprogrammed . | . . . . . . Reused . | . . . . . . Traps Extracted . | . . . . . . Installed . | . . . . . . Triggered . | . . . . . . Machines | -11 -10 -10 -8 -8 -7 ---------- Run | Yrd Mat Sub Mat Sto Fac Machines Disabled . | . . . . . . Max in Single Turn . | . . . . . . Machines Repaired . | . . . . . . Machines Dismantled . | . . . . . . Machines Sabotaged . | . . . . . . Overloaded Fab Kills . | . . . . . . Hacking | -11 -10 -10 -8 -8 -7 --------- Run | Yrd Mat Sub Mat Sto Fac Machines Accessed 6 | . . 2 . 3 1 Terminals 4 | . . . . 3 1 Fabricators . | . . . . . . Repair Stations . | . . . . . . Recycling Units . | . . . . . . Scanalyzers . | . . . . . . Garrison Access . | . . . . . . Total Hacks 9 | . . 3 . 5 1 Successful 7 | . . 3 . 3 1 Failed 2 | . . . . 2 . Catastrophic . | . . . . . . Database Lockouts . | . . . . . . Manual 1 | . 1 . . . . Terminals 6 | . . . . 5 1 Fabricators . | . . . . . . Repair Stations . | . . . . . . Recycling Units . | . . . . . . Scanalyzers . | . . . . . . Garrison Access . | . . . . . . Terminal Hacks 7 | . . 3 . 3 1 Record 1 | . . 1 . . . Open Door 4 | . . 1 . 3 . Open DSF 1 | . . . . . 1 Release Object 1 | . . 1 . . . Fabricator Hacks . | . . . . . . Repair Station Hacks . | . . . . . . Recycling Unit Hacks . | . . . . . . Scanalyzer . | . . . . . . Garrison Access Hacks . | . . . . . . Unauthorized Hacks . | . . . . . . Terminals . | . . . . . . Fabricators . | . . . . . . Repair Stations . | . . . . . . Recycling Units . | . . . . . . Scanalyzers . | . . . . . . Garrison Access . | . . . . . . Data Cores Recovered . | . . . . . . Used . | . . . . . . Hacking Detections 1 | . . . . 1 . Full Trace Events 1 | . . . . 1 . Feedback Events . | . . . . . . Feedback Blocked . | . . . . . . Robot Schematics Acquired . | . . . . . . Robots Built . | . . . . . . Authchips . | . . . . . . Time . | . . . . . . Total Robot Build Rating . | . . . . . . Part Schematics Acquired . | . . . . . . Parts Built . | . . . . . . Authchips . | . . . . . . Time . | . . . . . . Total Part Build Rating . | . . . . . . Part Studies Acquired . | . . . . . . Parts Repaired . | . . . . . . Time . | . . . . . . Parts Recycled . | . . . . . . Recycled Matter . | . . . . . . Retrieved Matter . | . . . . . . Retrieved Components . | . . . . . . Parts Scanalyzed . | . . . . . . Part Schematics Acquired . | . . . . . . Parts Damaged . | . . . . . . Bothacking | -11 -10 -10 -8 -8 -7 ------------ Run | Yrd Mat Sub Mat Sto Fac Used RIF Installer . | . . . . . . Robots Hacked . | . . . . . . Non-combat . | . . . . . . Combat . | . . . . . . Robot Hacks Applied . | . . . . . . Relay Couplers Released . | . . . . . . Fabnet Peak Effective % . | . . . . . . Robots Rewired . | . . . . . . Allies Hacked . | . . . . . . Hacks Repelled . | . . . . . . Allies | -11 -10 -10 -8 -8 -7 -------- Run | Yrd Mat Sub Mat Sto Fac Total Allies . | . . . . . . Largest Group . | . . . . . . Highest-Rated Group . | . . . . . . Highest-Rated Ally . | . . . . . . Total Orders . | . . . . . . Ally Attacks . | . . . . . . Total Damage . | . . . . . . Kills . | . . . . . . Allies Corrupted . | . . . . . . Allies Melted . | . . . . . . X0-1V1 Amusement Gains 172 | . 8 20 5 70 69 Good Acts 10 | . . 4 1 3 2 Bad Acts 17 | . . 3 5 4 5 Intel | -11 -10 -10 -8 -8 -7 ------- Run | Yrd Mat Sub Mat Sto Fac Active Infowar (turns) 582 | . . . 14 115 453 Optics 129 | . . . 14 115 . Jamming 453 | . . . . . 453 Robot Analysis Total . | . . . . . . Derelict Logs Recovered . | . . . . . . Drone Launches . | . . . . . . Drone Recoveries . | . . . . . . Exploration | -11 -10 -10 -8 -8 -7 ------------- Run | Yrd Mat Sub Mat Sto Fac Turns Passed 1995 | 96 105 282 193 175 1144 Spaces Moved 1148 | 73 67 223 78 143 564 Core 193 | 11 . 73 . 11 98 Treads . | . . . . . . Legs 345 | 62 67 123 28 65 . Wheels 610 | . . 27 50 67 466 Hover . | . . . . . . Flight . | . . . . . . Fastest Speed 50 | 50 120 50 105 90 95 Average Speed 128 | 109 120 103 125 104 147 Slowest Speed 2400 | 120 120 250 190 200 2400 Overloaded Moves . | . . . . . . Propulsion Burnouts . | . . . . . . Robots Hopped . | . . . . . . Potential Cave-ins . | . . . . . . Cave-ins Triggered . | . . . . . . Exploration Rate (%) 15 | 4 12 17 11 40 11 Regions Visited 5 Branch Regions 2 Pre-discovered Areas . | . . . . . . Known Exits Taken 1 | . . 1 . . . Unknown Exits Taken 4 | 1 1 . 1 1 . Scrap Searched . | . . . . . . Spaces Dug . | . . . . . . Terrain Destroyed 11 | . . . 5 . 6 Melee . | . . . . . . Projectile 5 | . . . 5 . . AOE 6 | . . . . . 6 Terrain Rammed . | . . . . . . Walls Destroyed . | . . . . . . Machines Disabled . | . . . . . . Actions | -11 -10 -10 -8 -8 -7 --------- Run | Yrd Mat Sub Mat Sto Fac Total 1454 | 89 81 252 141 163 728 Wait 26 | . 3 1 7 . 15 Move 1143 | 72 66 222 77 142 564 Hop . | . . . . . . Pick Up 74 | 10 1 8 17 7 31 Fast Attach 8 | 1 2 . . . 5 Attach 53 | 4 1 5 12 8 23 Detach 2 | . . . 1 . 1 Swap 3 | . . . . . 3 Drop 27 | 1 2 1 7 3 13 Fire 97 | . 6 14 17 3 57 Melee 5 | . . . . . 5 Ram 3 | . . . . . 3 Kick 1 | 1 . . . . . Crush . | . . . . . . Escape Stasis 8 | . . . . . 8 Rewire . | . . . . . . Trap . | . . . . . . Miscellaneous 4 | . . 1 3 . . Route ------- -11/Scrapyard -10/Materials (discovered 2 exits: [*Min] / *Sub) -10/Subcaves (discovered 2 exits: *Mat x2) -8/Materials -8/Storage -7/Factory (discovered 1 exit: [*Low]) History --------- Turn | Location | Event 6 | -11/Scrapyard | Discovered new exit (range 16) 97 | -11/Scrapyard | Entered Materials 178 | -10/Materials | Discovered new exit (range 8) 187 | -10/Materials | Discovered new exit (range 8) 195 | -10/Materials | Prayed at D.C.S.S. Altar Unit 202 | -10/Materials | Entered Subcaves 270 | -10/Subcaves | Inventory capacity permanently improved by X0-1V1 (+1; -100 max core) 315 | -10/Subcaves | Build established: Mutant 397 | -10/Subcaves | Discovered new exit (range 15) 407 | -10/Subcaves | X0-1V1 activates XOMVISION 411 | -10/Subcaves | Released subatomizers from SUBCON Basin 417 | -10/Subcaves | Lost 7 parts (2p2n3w) 433 | -10/Subcaves | Core integrity fell below 50% 445 | -10/Subcaves | Identified exit to Materials 445 | -10/Subcaves | X0-1V1 revealed exit location to -8/Materials 484 | -10/Subcaves | Entered Materials 484 | -8/Materials | Evolved 4 slots: Propulsion x1, Utility x2, Weapon x1 513 | -8/Materials | X0-1V1 sent you into danger 553 | -8/Materials | Core integrity permanently improved by X0-1V1 (+250) 593 | -8/Materials | Discovered new exit (range 5) 593 | -8/Materials | X0-1V1 sent you into danger 631 | -8/Materials | Destroyed 9 combat bots 677 | -8/Materials | Entered Storage 703 | -8/Storage | X0-1V1 added 0b10 threat records associated with you (major) 708 | -8/Storage | Assembled infested ambush trap array 770 | -8/Storage | Core integrity fell below 50% 802 | -8/Storage | Lost 11 parts (1p4n3u3w) 804 | -8/Storage | X0-1V1 foreshadows a heat wave 831 | -8/Storage | Garrison activated, responded to threat 845 | -8/Storage | Discovered new exit (range 9) 852 | -8/Storage | Entered Factory 852 | -7/Factory | Evolved 2 slots: Power x1, Propulsion x1 875 | -7/Factory | Matter capacity permanently improved by X0-1V1 (+600; -300 max core) 922 | -7/Factory | X0-1V1 announced a LAN party 1012 | -7/Factory | X0-1V1 sent hostile B-48 Gladiator (x3) 1516 | -7/Factory | Lost 3 parts (2n1u) 1856 | -7/Factory | Garrison activated, responded to threat 1875 | -7/Factory | Core integrity fell below 50% 1883 | -7/Factory | Discovered new exit (range 13) 1889 | -7/Factory | Core integrity fell below 20% 1899 | -7/Factory | X0-1V1 rescued you from certain death 1927 | -7/Factory | Lost 15 parts (2p6n3u4w) 1996 | -7/Factory | Destroyed by G-47 Trooper with Particle Gun Last Messages --------------- 01898_ Dropped Huge Storage Unit. 01899_ X0-1V1 barely happened to notice your imminent destruction. 01899_ Core integrity partially restored (280). The surroundings shift and blur. 01923_ ALERT: Cargo convoy en route, clear transfer corridor. 01935_ System corrupted: Substantial component data lost. X0-1V1's Piety Tracker suddenly appears amidst shimmering waves of color. 01952_ Acquired X0-1V1's Piety Tracker. 01953_ NCAQSOF0UOA,GNSALL8> CUEFRH#